[Event "1.FrauenBL 2016-17"]
[Site "Berlin"]
[Date "2017.04.29"]
[Round "9"]
[White "Hoolt, Sarah"]
[Black "Sherif, Amina"]
[Result "1-0"]
[ECO "B15"]
[WhiteElo "2398"]
[BlackElo "2003"]
[Annotator "NA"]
[PlyCount "71"]
[EventDate "2017.??.??"]
[EventType "team-tourn"]
[EventCountry "GER"]
[SourceTitle "playchess.com"]
[Source "ChessBase"]
[SourceQuality "1"]
[WhiteTeam "Hamburger SK"]
[BlackTeam "TuRa Harksheide"]
[TimeControl "40/6000+30:3000+30"]

1. e4 {[%emt 1:30:28]} g6 {[%emt 1:30:06]} 2. d4 {[%emt 1:30:51]} Bg7 {[%emt 1:30:22]} 3. Nc3 {[%emt 1:31:12]} c6 {[%emt 1:31:12]} 4. Be3 {[%emt 1:29:31]} d5 {[%emt 1:29:50]} 5. e5 {[%emt 1:29:33]} f6 {[%emt 1:29:04]} 6. f4 {[%emt 1:25:37]} Nh6 {[%emt 1:27:18]} 7. Be2 {[%emt 1:25:19]} b6 {[%emt 1:25:19]} 8. Nf3 {[%emt 1:21:25]} Bb7 {[%emt 1:10:07]} 9. Qd2 {[%emt 1:20:43]} Nd7 {[%emt 0:59:30]} 10. O-O-O {[%emt 1:18:05]} e6 {[%emt 0:56:50]} 11. Kb1 {[%emt 1:10:57]} Qe7 {[%emt 0:54:39]} 12. h3 {[%emt 0:54:39]} Nf7 $16 {[%emt 0:49:14]} 13. g4 {[%emt 1:03:42]} a6 {[%emt 0:45:28]} 14. Rhe1 {[%emt 0:50:35]} fxe5 {[%emt 0:42:31]} 15. fxe5 {[%emt 0:50:10]} O-O {[%emt 0:38:19]} 16. h4 {[%emt 0:43:36]} c5 {[%emt 0:35:39]} 17. h5 {[%emt 0:37:08]} cxd4 {[%emt 0:30:00]} 18. Bxd4 {[%emt 0:37:23]} Nfxe5 {[%emt 0:26:56]} 19. Nxe5 {[%emt 0:37:35]} Bxe5 {[%emt 0:20:33]} 20. Bxe5 {[%emt 0:37:42]} Nxe5 {[%emt 0:37:42]} 21. Qe3 {[%emt 0:35:14]} Qd6 {[%emt 0:35:14]} 22. Ne4 {[%emt 0:18:53]} Qc7 {[%emt 0:16:18]} 23. Ng5 {[%emt 0:16:18]} Rae8 {[%emt 0:15:15]} 24. Qg3 {[%emt 0:23:47]} Qg7 {[%emt 0:12:30]} 25. Bf1 {[%emt 0:15:59]} Rxf1 {[%emt 0:06:08]} 26. Rxf1 {[%emt 0:06:08]} gxh5 {[%emt 0:06:13]} 27. gxh5 {[%emt 0:06:13]} h6 {[%emt 0:05:57]} 28. Rg1 {[%emt 0:12:16]} Nc4 {[%emt 0:03:46]} 29. Nxe6 {[%emt 0:12:06]} Qxg3 {[%emt 0:03:35]} 30. Rxg3+ {[%emt 0:03:35]} Kh8 {[%emt 0:03:00]} 31. Rg6 {[%emt 0:12:14]} Kh7 {[%emt 0:02:56]} 32. Rg7+ {[%emt 0:10:48]} Kh8 {[%emt 0:03:19]} 33. Rxb7 {[%emt 0:11:07]} Rxe6 {[%emt 0:03:44]} 34. b3 {[%emt 0:03:44]} Ne3 {[%emt 0:03:44]} 35. Rg1 {[%emt 0:11:24]} Nf5 {[%emt 0:03:04]} 36. Rf1 {[%emt 0:10:21]} 1-0

[Event "1.FrauenBL 2016-17"]
[Site "Berlin"]
[Date "2017.04.29"]
[Round "9"]
[White "Ankerst, Milka"]
[Black "Braun, Kristin"]
[Result "1/2-1/2"]
[ECO "B78"]
[WhiteElo "2064"]
[BlackElo "1860"]
[Annotator "NA"]
[PlyCount "103"]
[EventDate "2017.??.??"]
[EventType "team-tourn"]
[EventCountry "GER"]
[SourceTitle "playchess.com"]
[Source "ChessBase"]
[SourceQuality "1"]
[WhiteTeam "FC Bayern München"]
[BlackTeam "SG Augsburg"]
[TimeControl "40/6000+30:3000+30"]

1. e4 {[%emt 1:30:30]} c5 {[%emt 1:30:23]} 2. Nf3 {[%emt 1:30:35]} d6 {[%emt 1:30:47]} 3. d4 {[%emt 1:30:46]} cxd4 {[%emt 1:31:14]} 4. Nxd4 {[%emt 1:31:05]} Nf6 {[%emt 1:31:40]} 5. Nc3 {[%emt 1:31:14]} g6 {[%emt 1:32:03]} 6. Be3 {[%emt 1:29:23]} Bg7 {[%emt 1:32:27]} 7. f3 {[%emt 1:27:38]} Nc6 {[%emt 1:32:46]} 8. Bc4 {[%emt 1:26:25]} O-O {[%emt 1:32:03]} 9. Qd2 {[%emt 1:32:03]} Bd7 {[%emt 1:31:26]} 10. O-O-O {[%emt 1:31:26]} Rc8 {[%emt 1:30:21]} 11. Bb3 {[%emt 1:22:28]} Ne5 {[%emt 1:27:57]} 12. h4 {[%emt 1:22:13]} h5 {[%emt 1:22:13]} 13. Kb1 {[%emt 1:19:27]} Nc4 {[%emt 1:25:51]} 14. Bxc4 {[%emt 1:19:28]} Rxc4 {[%emt 1:26:15]} 15. Nde2 {[%emt 1:07:48]} Qa5 {[%emt 1:20:14]} 16. Nd5 {[%emt 1:06:21]} Qd8 {[%emt 1:06:21]} 17. Nxf6+ {[%emt 1:02:36]} Bxf6 {[%emt 1:10:13]} 18. Bd4 {[%emt 1:01:40]} Bg7 {[%emt 1:01:40]} 19. g4 {[%emt 0:55:31]} hxg4 {[%emt 0:47:36]} 20. f4 {[%emt 0:47:36]} g3 {[%emt 0:50:18]} 21. f5 {[%emt 0:46:45]} e5 {[%emt 0:26:41]} 22. fxe6 {[%emt 0:46:28]} g2 {[%emt 0:20:48]} 23. Rh2 {[%emt 0:35:21]} Bxe6 {[%emt 0:18:58]} 24. Bxg7 {[%emt 0:30:45]} Kxg7 {[%emt 0:18:44]} 25. Ng3 {[%emt 0:29:41]} Bg4 {[%emt 0:29:41]} 26. Re1 {[%emt 0:22:13]} Rh8 {[%emt 0:11:26]} 27. Rxg2 {[%emt 0:17:23]} Rxh4 {[%emt 0:10:25]} 28. Qd3 {[%emt 0:16:38]} Rc6 {[%emt 0:08:44]} 29. Qd4+ {[%emt 0:10:57]} Kg8 {[%emt 0:04:51]} 30. Rf2 {[%emt 0:09:42]} Be6 {[%emt 0:04:20]} 31. Qd2 {[%emt 0:08:44]} Ra6 {[%emt 0:03:37]} 32. b3 {[%emt 0:08:56]} Qa5 {[%emt 0:03:50]} 33. Qxa5 {[%emt 0:08:08]} Rxa5 {[%emt 0:08:08]} 34. Rd1 {[%emt 0:08:05]} d5 {[%emt 0:04:04]} 35. exd5 {[%emt 0:04:04]} Rxd5 {[%emt 0:04:14]} 36. Re1 {[%emt 0:04:14]} Rhd4 {[%emt 0:02:34]} 37. Kb2 {[%emt 0:06:12]} Rd2 {[%emt 0:01:42]} 38. Rf3 {[%emt 0:03:52]} Rg2 {[%emt 0:03:52]} 39. Ne4 {[%emt 0:04:01]} Rd8 {[%emt 0:01:25]} 40. Rf2 {[%emt 0:01:36]} Rxf2 {[%emt 0:01:30]} 41. Nxf2 {[%emt 0:02:05]} Kf8 {[%emt 0:26:30]} 42. Nd3 {[%emt 0:31:31]} Bf5 {[%emt 0:24:08]} 43. Kc3 {[%emt 0:28:47]} Re8 {[%emt 0:22:35]} 44. Rg1 {[%emt 0:27:43]} Re2 {[%emt 0:22:24]} 45. a4 {[%emt 0:27:38]} Ke7 {[%emt 0:21:25]} 46. b4 {[%emt 0:27:47]} Kf6 {[%emt 0:20:40]} 47. b5 {[%emt 0:20:40]} g5 {[%emt 0:18:31]} 48. a5 {[%emt 0:18:31]} g4 {[%emt 0:17:13]} 49. Ne1 {[%emt 0:20:33]} Re3+ {[%emt 0:16:09]} 50. Kb4 {[%emt 0:20:44]} Ke5 {[%emt 0:20:44]} 51. Z0 {[%emt 0:13:05]} Ke4 {[%emt 0:13:05]} 52. Z0 {[%emt 0:13:05] Be4 0:13:05} 1/2-1/2

[Event "1.FrauenBL 2016-17"]
[Site "Berlin"]
[Date "2017.04.29"]
[Round "9.1"]
[White "Papp, Petra"]
[Black "Straub, Natalia"]
[Result "1-0"]
[ECO "C10"]
[WhiteElo "2378"]
[BlackElo "2188"]
[Annotator "NA"]
[PlyCount "149"]
[EventDate "2017.??.??"]
[EventType "team-tourn"]
[EventCountry "GER"]
[SourceTitle "playchess.com"]
[Source "ChessBase"]
[SourceQuality "1"]
[WhiteTeam "SK Schwäbisch Hall"]
[BlackTeam "SF Deizisau"]
[TimeControl "40/6000+30:3000+30"]

1. e4 {[%emt 1:30:19]} e6 {[%emt 1:30:15]} 2. d4 {[%emt 1:30:15]} d5 {[%emt 1:30:41]} 3. Nc3 {[%emt 1:30:41]} dxe4 {[%emt 1:31:03]} 4. Nxe4 {[%emt 1:31:03]} Nd7 {[%emt 1:31:25]} 5. Nf3 {[%emt 1:30:20]} Ngf6 {[%emt 1:31:47]} 6. Nxf6+ {[%emt 1:29:28]} Nxf6 {[%emt 1:32:09]} 7. Be3 {[%emt 1:32:09]} Bd6 {[%emt 1:25:55]} 8. Bd3 {[%emt 1:26:17]} O-O {[%emt 1:17:22]} 9. Qe2 {[%emt 1:17:22]} b6 {[%emt 1:12:09]} 10. O-O-O {[%emt 1:24:55]} Bb7 {[%emt 1:08:22]} 11. Bg5 {[%emt 1:22:43]} h6 {[%emt 1:22:43]} 12. Bh4 {[%emt 1:18:42]} Bf4+ {[%emt 0:50:51]} 13. Kb1 {[%emt 1:18:38]} Qd5 {[%emt 0:41:14]} 14. Rhe1 {[%emt 0:56:20]} Qh5 {[%emt 0:27:41]} 15. Bxf6 {[%emt 0:55:18]} gxf6 {[%emt 0:28:06]} 16. Be4 {[%emt 0:55:11]} Bxe4 {[%emt 0:27:08]} 17. Qxe4 {[%emt 0:27:08]} Bd6 {[%emt 0:26:55]} 18. g4 {[%emt 0:26:55]} Qd5 {[%emt 0:20:36]} 19. Qxd5 {[%emt 0:45:22]} exd5 {[%emt 0:21:04]} 20. Re2 {[%emt 0:45:39]} Rfe8 {[%emt 0:20:54]} 21. Rde1 {[%emt 0:45:40]} Rxe2 {[%emt 0:11:10]} 22. Rxe2 {[%emt 0:46:08]} Kh7 {[%emt 0:07:19]} 23. h3 {[%emt 0:44:29]} h5 {[%emt 0:06:50]} 24. gxh5 {[%emt 0:31:27]} Rg8 {[%emt 0:06:10]} 25. Re1 {[%emt 0:29:11]} Kh6 {[%emt 0:06:35]} 26. Rg1 {[%emt 0:25:53]} Re8 {[%emt 0:25:53]} 27. Kc1 {[%emt 0:24:42]} Kxh5 {[%emt 0:24:42]} 28. Kd1 {[%emt 0:22:16]} c5 {[%emt 0:22:16]} 29. c3 {[%emt 0:18:19]} c4 {[%emt 0:03:47]} 30. Rg7 {[%emt 0:16:31]} Rf8 {[%emt 0:04:15]} 31. Ne1 {[%emt 0:14:27]} Bf4 {[%emt 0:03:04]} 32. Rg4 {[%emt 0:13:34]} Bh6 {[%emt 0:03:31]} 33. Nc2 {[%emt 0:11:03]} a5 {[%emt 0:03:47]} 34. Ne3 {[%emt 0:06:45]} Bxe3 {[%emt 0:03:46]} 35. fxe3 {[%emt 0:07:13]} f5 {[%emt 0:03:51]} 36. Rg7 {[%emt 0:07:43]} Kh6 {[%emt 0:04:14]} 37. Rg3 {[%emt 0:04:39]} b5 {[%emt 0:01:46]} 38. Ke2 {[%emt 0:04:10]} b4 {[%emt 0:00:10]} 39. Kf3 {[%emt 0:03:59]} Rb8 {[%emt 0:00:39]} 40. Kf4 {[%emt 0:00:39]} bxc3 {[%emt 0:00:37]} 41. bxc3 {[%emt 0:00:58]} Rb2 {[%emt 0:29:23]} 42. a4 {[%emt 0:18:04]} Rc2 {[%emt 0:24:17]} 43. Kxf5 {[%emt 0:13:59]} Rxc3 {[%emt 0:23:30]} 44. Ke5 {[%emt 0:23:30]} Rd3 {[%emt 0:11:11]} 45. Kxd5 {[%emt 0:11:53]} c3 {[%emt 0:11:33]} 46. Rg1 {[%emt 0:08:16]} c2 {[%emt 0:08:03]} 47. Rc1 {[%emt 0:08:35]} Rc3 {[%emt 0:04:49]} 48. Ke4 {[%emt 0:05:48]} Kg6 {[%emt 0:04:18]} 49. d5 {[%emt 0:05:25]} Rc4+ {[%emt 0:03:22]} 50. Kd3 {[%emt 0:02:06]} Rxa4 {[%emt 0:03:17]} 51. Rxc2 {[%emt 0:02:30]} Kf6 {[%emt 0:02:30]} 52. Rc4 {[%emt 0:02:28]} Ra1 {[%emt 0:01:45]} 53. Ke4 {[%emt 0:01:41]} Rh1 {[%emt 0:01:24]} 54. Rc6+ {[%emt 0:01:17]} Ke7 {[%emt 0:01:52]} 55. Ke5 {[%emt 0:00:12]} Rxh3 {[%emt 0:02:19]} 56. e4 {[%emt 0:00:23]} a4 {[%emt 0:01:47]} 57. Rc7+ {[%emt 0:00:47]} Ke8 {[%emt 0:02:11]} 58. Ra7 {[%emt 0:00:55]} a3 {[%emt 0:01:47]} 59. Kd6 {[%emt 0:01:21]} Rh6+ {[%emt 0:02:08]} 60. Kc5 {[%emt 0:02:08]} Rh3 {[%emt 0:01:17]} 61. e5 {[%emt 0:01:17]} Rb3 {[%emt 0:00:57]} 62. Kc6 {[%emt 0:01:08]} Rc3+ {[%emt 0:00:32]} 63. Kd6 {[%emt 0:01:08]} Kf8 {[%emt 0:00:12]} 64. Kd7 {[%emt 0:00:19]} Rc5 {[%emt 0:00:34]} 65. Ra8+ {[%emt 0:00:16]} Kg7 {[%emt 0:01:02]} 66. d6 {[%emt 0:00:10]} Rxe5 {[%emt 0:01:17]} 67. Rxa3 {[%emt 0:00:21]} f5 {[%emt 0:00:44]} 68. Kc6 {[%emt 0:00:29]} Re1 {[%emt 0:00:16]} 69. d7 {[%emt 0:00:42]} Rc1+ {[%emt 0:00:32]} 70. Kd6 {[%emt 0:00:45]} Rd1+ {[%emt 0:00:45]} 71. Ke6 {[%emt 0:00:48]} f4 {[%emt 0:01:04]} 72. Ra4 {[%emt 0:00:05]} f3 {[%emt 0:00:38]} 73. Rg4+ {[%emt 0:00:21]} Kh6 {[%emt 0:00:49]} 74. Rf4 {[%emt 0:00:38]} Re1+ {[%emt 0:01:11]} 75. Kf6 {[%emt 0:00:58]} 1-0

[Event "1.FrauenBL 2016-17"]
[Site "Berlin"]
[Date "2017.04.29"]
[Round "9.1"]
[White "Richterova, Natasa"]
[Black "Sieber, Fiona"]
[Result "0-1"]
[ECO "C47"]
[WhiteElo "2210"]
[BlackElo "2193"]
[Annotator "NA"]
[PlyCount "114"]
[EventDate "2017.??.??"]
[EventType "team-tourn"]
[EventCountry "GER"]
[SourceTitle "playchess.com"]
[Source "ChessBase"]
[SourceQuality "1"]
[WhiteTeam "SV Medizin Erfurt"]
[BlackTeam "SK Lehrte"]
[TimeControl "40/6000+30:3000+30"]

1. e4 {[%emt 1:30:07]} e5 {[%emt 1:30:16]} 2. Nf3 {[%emt 1:30:32]} Nc6 {[%emt 1:30:32]} 3. Nc3 {[%emt 1:29:22]} Nf6 {[%emt 1:29:44]} 4. d4 {[%emt 1:29:44]} exd4 {[%emt 1:29:51]} 5. Nxd4 {[%emt 1:29:51]} Bb4 {[%emt 1:29:46]} 6. Nxc6 {[%emt 1:29:46]} bxc6 {[%emt 1:30:15]} 7. Bd3 {[%emt 1:30:36]} d5 {[%emt 1:30:36]} 8. exd5 {[%emt 1:30:51]} cxd5 {[%emt 1:30:51]} 9. O-O {[%emt 1:30:38]} O-O {[%emt 1:30:47]} 10. Bg5 {[%emt 1:31:12]} c6 {[%emt 1:30:41]} 11. Qf3 {[%emt 1:30:41]} h6 {[%emt 1:30:27]} 12. Bxf6 {[%emt 1:29:04]} Qxf6 {[%emt 1:30:49]} 13. Qxf6 {[%emt 1:29:23]} gxf6 {[%emt 1:29:23]} 14. Ne2 {[%emt 1:28:44]} Re8 {[%emt 1:29:30]} 15. c3 {[%emt 1:21:24]} Bf8 {[%emt 1:27:08]} 16. Ng3 {[%emt 1:27:08]} Re5 {[%emt 1:18:35]} 17. Rfe1 {[%emt 1:18:35]} Bd7 {[%emt 0:39:05]} 18. f4 {[%emt 1:10:20]} Ree8 {[%emt 1:10:20]} 19. Nh5 {[%emt 0:37:19]} Be7 {[%emt 0:34:17]} 20. f5 {[%emt 1:00:18]} Kf8 {[%emt 0:27:52]} 21. Kh1 {[%emt 0:49:14]} Bd8 {[%emt 0:49:14]} 22. Rxe8+ {[%emt 0:45:55]} Bxe8 {[%emt 0:45:55]} 23. Re1 {[%emt 0:26:03]} Bd7 {[%emt 0:44:53]} 24. Bc2 {[%emt 0:43:29]} Be7 {[%emt 0:24:45]} 25. g4 {[%emt 0:41:26]} Re8 {[%emt 0:20:23]} 26. Re2 {[%emt 0:31:03]} Bd8 {[%emt 0:19:27]} 27. Rd2 {[%emt 0:19:27]} Re5 {[%emt 0:14:43]} 28. Bb3 {[%emt 0:22:36]} Ke7 {[%emt 0:12:38]} 29. Kg2 {[%emt 0:16:52]} Bb6 {[%emt 0:16:52]} 30. Ng3 {[%emt 0:12:01]} Bc8 {[%emt 0:10:53]} 31. h4 {[%emt 0:11:33]} Bb7 {[%emt 0:11:33]} 32. Bd1 {[%emt 0:11:39]} Be3 {[%emt 0:08:14]} 33. Rc2 {[%emt 0:06:38]} c5 {[%emt 0:03:41]} 34. Bf3 {[%emt 0:07:00]} Bc8 {[%emt 0:03:48]} 35. Nf1 {[%emt 0:03:48]} Bf4 {[%emt 0:03:42]} 36. Be2 {[%emt 0:03:42]} h5 {[%emt 0:02:48]} 37. Kf3 {[%emt 0:02:48]} Bh6 {[%emt 0:03:16]} 38. Ng3 {[%emt 0:03:52]} Re3+ {[%emt 0:01:57]} 39. Kf2 {[%emt 0:04:21]} hxg4 {[%emt 0:02:04]} 40. Bxg4 {[%emt 0:04:35]} Re5 {[%emt 0:04:35]} 41. b4 {[%emt 0:01:38]} c4 {[%emt 0:28:40]} 42. Re2 {[%emt 0:29:41]} Kd6 {[%emt 0:23:36]} 43. Bh5 {[%emt 0:24:59]} Bf4 {[%emt 0:18:36]} 44. Rxe5 {[%emt 0:22:40]} Bxe5 {[%emt 0:18:57]} 45. Ne2 {[%emt 0:21:14]} Bxf5 {[%emt 0:19:00]} 46. Bxf7 {[%emt 0:21:17]} Be4 {[%emt 0:14:57]} 47. a4 {[%emt 0:14:57]} f5 {[%emt 0:12:00]} 48. h5 {[%emt 0:12:31]} f4 {[%emt 0:10:04]} 49. h6 {[%emt 0:02:49]} f3 {[%emt 0:02:49]} 50. Ng3 {[%emt 0:10:00]} Bh7 {[%emt 0:08:27]} 51. Kxf3 {[%emt 0:01:59]} Bxc3 {[%emt 0:01:59]} 52. Nh5 {[%emt 0:00:49]} Bd2 {[%emt 0:03:39]} 53. Ke2 {[%emt 0:00:08]} Bxh6 {[%emt 0:03:59]} 54. Bxd5 {[%emt 0:00:18]} Bd3+ {[%emt 0:00:18]} 55. Kd1 {[%emt 0:00:18]} Kxd5 {[%emt 0:04:26]} 56. Nf6+ {[%emt 0:00:33]} Kd4 {[%emt 0:04:40]} 57. Ng4 {[%emt 0:00:27]} Bf4 {[%emt 0:04:54]} 0-1

[Event "1.FrauenBL 2016-17"]
[Site "Berlin"]
[Date "2017.04.29"]
[Round "9.1"]
[White "Waechter, Nathalie"]
[Black "Baciu, Diana"]
[Result "0-1"]
[ECO "D38"]
[WhiteElo "2007"]
[BlackElo "2275"]
[Annotator "NA"]
[PlyCount "48"]
[EventDate "2017.??.??"]
[EventType "team-tourn"]
[EventCountry "GER"]
[SourceTitle "playchess.com"]
[Source "ChessBase"]
[SourceQuality "1"]
[WhiteTeam "TuRa Harksheide"]
[BlackTeam "Hamburger SK"]
[TimeControl "40/6000+30:3000+30"]

1. d4 {[%emt 1:30:28]} d5 {[%emt 1:30:23]} 2. c4 {[%emt 1:30:52]} e6 {[%emt 1:30:40]} 3. Nc3 {[%emt 1:31:07]} Nf6 {[%emt 1:31:07]} 4. cxd5 {[%emt 1:31:28]} exd5 {[%emt 1:31:28]} 5. Bg5 {[%emt 1:31:44]} Bb4 {[%emt 1:26:32]} 6. Nf3 {[%emt 1:23:23]} h6 {[%emt 1:26:19]} 7. Bxf6 {[%emt 1:26:19]} Qxf6 {[%emt 1:26:45]} 8. Qb3 {[%emt 1:19:15]} c5 {[%emt 1:19:15]} 9. e3 {[%emt 1:24:20]} Nc6 {[%emt 1:18:46]} 10. dxc5 $14 {[%emt 1:18:46] LiveBook: 36 Games} ({Don't play} 10. Qxd5 Be6 11. Qe4 cxd4 12. Nxd4 Nxd4 13. Qxd4 Qxd4 14. exd4 O-O $11) 10... Be6 {[%emt 1:16:27]} 11. Bb5 {[%emt 1:05:38]} Bxc5 {[%emt 1:14:25]} 12. Qa4 {[%emt 0:57:40]} O-O {[%emt 1:06:53]} 13. O-O {[%emt 0:54:18]} Rac8 {[%emt 0:55:02]} 14. Rfd1 {[%emt 0:50:09]} Rfd8 {[%emt 0:54:04]} 15. Rac1 {[%emt 0:54:04]} Ne5 {[%emt 0:48:32]} 16. Be2 {[%emt 0:38:13]} Nc4 {[%emt 0:38:13]} 17. Bxc4 {[%emt 0:31:29]} dxc4 {[%emt 0:42:24]} 18. Ne4 {[%emt 0:31:22]} Rxd1+ {[%emt 0:37:03]} 19. Rxd1 {[%emt 0:28:59]} Qxb2 {[%emt 0:28:59]} 20. Nxc5 {[%emt 0:18:10]} Rxc5 {[%emt 0:33:28]} 21. Nd4 {[%emt 0:17:11]} Kh7 {[%emt 0:17:11]} 22. Nxe6 {[%emt 0:11:04]} fxe6 {[%emt 0:21:53]} 23. g4 {[%emt 0:10:42]} Qe2 {[%emt 0:19:40]} 24. h3 {[%emt 0:09:56]} b5 {[%emt 0:20:04]} 0-1

[Event "1.FrauenBL 2016-17"]
[Site "Berlin"]
[Date "2017.04.29"]
[Round "9.2"]
[White "Schulze, Lara"]
[Black "Troyke, Doreen"]
[Result "1-0"]
[ECO "B32"]
[WhiteElo "2157"]
[BlackElo "2091"]
[Annotator "NA"]
[PlyCount "55"]
[EventDate "2017.??.??"]
[EventType "team-tourn"]
[EventCountry "GER"]
[SourceTitle "playchess.com"]
[Source "ChessBase"]
[SourceQuality "1"]
[WhiteTeam "SK Lehrte"]
[BlackTeam "SV Medizin Erfurt"]
[TimeControl "40/6000+30:3000+30"]

1. e4 {[%emt 1:30:26]} c5 {[%emt 1:30:26]} 2. Nf3 {[%emt 1:30:49]} Nc6 {[%emt 1:30:46]} 3. d4 {[%emt 1:30:46]} cxd4 {[%emt 1:31:05]} 4. Nxd4 {[%emt 1:31:34]} e5 {[%emt 1:31:21]} 5. Nb5 {[%emt 1:31:56]} d6 {[%emt 1:31:45]} 6. N1c3 {[%emt 1:32:15]} a6 {[%emt 1:31:48]} 7. Na3 {[%emt 1:31:48]} b5 {[%emt 1:32:14]} 8. Nd5 {[%emt 1:32:14]} Nce7 {[%emt 1:32:23]} 9. c4 {[%emt 1:33:25]} Nxd5 {[%emt 1:32:13]} 10. exd5 {[%emt 1:32:13]} bxc4 {[%emt 1:32:32]} 11. Nxc4 {[%emt 1:34:01]} Nf6 {[%emt 1:32:20]} 12. Be3 {[%emt 1:32:20]} Rb8 {[%emt 1:32:25]} 13. Be2 {[%emt 1:34:26]} Be7 {[%emt 1:32:03]} 14. a4 {[%emt 1:34:14]} O-O {[%emt 1:30:16]} 15. O-O {[%emt 1:34:32]} Nd7 {[%emt 1:30:27]} 16. Qd2 {[%emt 1:30:27]} f5 {[%emt 1:28:10]} 17. f3 {[%emt 1:21:55]} Bb7 {[%emt 1:20:26]} 18. Na5 {[%emt 1:15:40]} Ba8 {[%emt 1:02:01]} 19. Rfc1 {[%emt 1:00:08]} Nb6 {[%emt 0:32:32]} 20. Nc6 {[%emt 0:57:02]} Bxc6 {[%emt 0:27:50]} 21. dxc6 {[%emt 0:27:50]} Qc7 {[%emt 0:25:47]} 22. a5 {[%emt 0:54:41]} Na8 {[%emt 0:54:41]} 23. Bxa6 {[%emt 0:25:34]} Bf6 {[%emt 0:22:33]} 24. Bb7 {[%emt 0:50:00]} Kh8 {[%emt 0:12:04]} 25. Qb4 {[%emt 0:12:04]} Rf7 {[%emt 0:35:47]} 26. Bb6 {[%emt 0:33:58]} Rxb7 {[%emt 0:06:32]} 27. cxb7 {[%emt 0:33:46]} Qxb7 {[%emt 0:06:58]} 28. Qxd6 {[%emt 0:31:14]} 1-0